{"text_format":"3","workbook":"xlsx","n_sheets":5,"sheets":["Отчет за продажбите на продукти","Хронологични данни","Ценоразпис","Обобщение на ценовите точки","Обобщена тенденция на продажби"],"not_rendered":{"charts":2,"defined_names":6,"pivot_tables":2},"read":"whole","date_system":"1900"}

{"sheet":"Отчет за продажбите на продукти","index":0,"n_rows":20,"n_cols":2,"rows_kept":20}
[null,"Отчет за продажбите на продукти"]
{"$rows_empty":18}
[null,"Продукти"]

{"sheet":"Хронологични данни","index":1,"n_rows":33,"n_cols":10,"rows_kept":33}
[null,"Хронологичен ценоразпис и продажби на продуктите"]
[]
[null,"ИД на продукт","Име на продукт","Дата на цената","Цена на дребно за един брой","Цена на едро за един брой*","Продадени бройки (на дребно)","Продадени бройки (на едро)","Общо продажби (бр.)","Общо продажби (лв.)"]
[null,5,{"$f":"IFERROR(IF(табл_Продажби[[#This Row],[ИД на продукт]]<>\"\",VLOOKUP(табл_Продажби[ИД на продукт],табл_Продукти[[ИД на продукт]:[Име]],2,FALSE),\"\"),\"Неизвестен ИД на продукт\")","v":"Шорти"},"2012-01-01",20,{"v":20,"d":"20 лв."},629,{"v":1254,"d":"1,254"},{"$f":"табл_Продажби[[#This Row],[Продадени бройки (на дребно)]]+табл_Продажби[[#This Row],[Продадени бройки (на едро)]]","v":{"v":1883,"d":"1,883"}},{"$f":"табл_Продажби[[#This Row],[Продадени бройки (на дребно)]]*табл_Продажби[[#This Row],[Цена на дребно за един брой]]+табл_Продажби[[#This Row],[Продадени бройки (на едро)]]*табл_Продажби[[#This Row],[Цена на едро за един брой*]]","v":{"v":37660,"d":"37,660 лв."}}]
[null,1,{"$f":"IFERROR(IF(табл_Продажби[[#This Row],[ИД на продукт]]<>\"\",VLOOKUP(табл_Продажби[ИД на продукт],табл_Продукти[[ИД на продукт]:[Име]],2,FALSE),\"\"),\"Неизвестен ИД на продукт\")","v":"Ризи"},"2012-01-01",88,{"v":54,"d":"54 лв."},734,{"v":1427,"d":"1,427"},{"$f":"табл_Продажби[[#This Row],[Продадени бройки (на дребно)]]+табл_Продажби[[#This Row],[Продадени бройки (на едро)]]","v":{"v":2161,"d":"2,161"}},{"$f":"табл_Продажби[[#This Row],[Продадени бройки (на дребно)]]*табл_Продажби[[#This Row],[Цена на дребно за един брой]]+табл_Продажби[[#This Row],[Продадени бройки (на едро)]]*табл_Продажби[[#This Row],[Цена на едро за един брой*]]","v":{"v":141650,"d":"141,650 лв."}}]
[null,2,{"$f":"IFERROR(IF(табл_Продажби[[#This Row],[ИД на продукт]]<>\"\",VLOOKUP(табл_Продажби[ИД на продукт],табл_Продукти[[ИД на продукт]:[Име]],2,FALSE),\"\"),\"Неизвестен ИД на продукт\")","v":"Сандали"},"2012-01-01",70,{"v":44,"d":"44 лв."},744,{"v":1043,"d":"1,043"},{"$f":"табл_Продажби[[#This Row],[Продадени бройки (на дребно)]]+табл_Продажби[[#This Row],[Продадени бройки (на едро)]]","v":{"v":1787,"d":"1,787"}},{"$f":"табл_Продажби[[#This Row],[Продадени бройки (на дребно)]]*табл_Продажби[[#This Row],[Цена на дребно за един брой]]+табл_Продажби[[#This Row],[Продадени бройки (на едро)]]*табл_Продажби[[#This Row],[Цена на едро за един брой*]]","v":{"v":97972,"d":"97,972 лв."}}]
[null,3,{"$f":"IFERROR(IF(табл_Продажби[[#This Row],[ИД на продукт]]<>\"\",VLOOKUP(табл_Продажби[ИД на продукт],табл_Продукти[[ИД на продукт]:[Име]],2,FALSE),\"\"),\"Неизвестен ИД на продукт\")","v":"Чадъри"},"2012-01-01",63,{"v":44,"d":"44 лв."},681,{"v":1523,"d":"1,523"},{"$f":"табл_Продажби[[#This Row],[Продадени бройки (на дребно)]]+табл_Продажби[[#This Row],[Продадени бройки (на едро)]]","v":{"v":2204,"d":"2,204"}},{"$f":"табл_Продажби[[#This Row],[Продадени бройки (на дребно)]]*табл_Продажби[[#This Row],[Цена на дребно за един брой]]+табл_Продажби[[#This Row],[Продадени бройки (на едро)]]*табл_Продажби[[#This Row],[Цена на едро за един брой*]]","v":{"v":109915,"d":"109,915 лв."}}]
[null,4,{"$f":"IFERROR(IF(табл_Продажби[[#This Row],[ИД на продукт]]<>\"\",VLOOKUP(табл_Продажби[ИД на продукт],табл_Продукти[[ИД на продукт]:[Име]],2,FALSE),\"\"),\"Неизвестен ИД на продукт\")","v":"Бутилки за вода"},"2012-01-01",35,{"v":27,"d":"27 лв."},602,{"v":1822,"d":"1,822"},{"$f":"табл_Продажби[[#This Row],[Продадени бройки (на дребно)]]+табл_Продажби[[#This Row],[Продадени бройки (на едро)]]","v":{"v":2424,"d":"2,424"}},{"$f":"табл_Продажби[[#This Row],[Продадени бройки (на дребно)]]*табл_Продажби[[#This Row],[Цена на дребно за един брой]]+табл_Продажби[[#This Row],[Продадени бройки (на едро)]]*табл_Продажби[[#This Row],[Цена на едро за един брой*]]","v":{"v":70264,"d":"70,264 лв."}}]
[null,1,{"$f":"IFERROR(IF(табл_Продажби[[#This Row],[ИД на продукт]]<>\"\",VLOOKUP(табл_Продажби[ИД на продукт],табл_Продукти[[ИД на продукт]:[Име]],2,FALSE),\"\"),\"Неизвестен ИД на продукт\")","v":"Ризи"},"2012-02-01",55,{"v":44,"d":"44 лв."},678,{"v":1515,"d":"1,515"},{"$f":"табл_Продажби[[#This Row],[Продадени бройки (на дребно)]]+табл_Продажби[[#This Row],[Продадени бройки (на едро)]]","v":{"v":2193,"d":"2,193"}},{"$f":"табл_Продажби[[#This Row],[Продадени бройки (на дребно)]]*табл_Продажби[[#This Row],[Цена на дребно за един брой]]+табл_Продажби[[#This Row],[Продадени бройки (на едро)]]*табл_Продажби[[#This Row],[Цена на едро за един брой*]]","v":{"v":103950,"d":"103,950 лв."}}]
[null,2,{"$f":"IFERROR(IF(табл_Продажби[[#This Row],[ИД на продукт]]<>\"\",VLOOKUP(табл_Продажби[ИД на продукт],табл_Продукти[[ИД на продукт]:[Име]],2,FALSE),\"\"),\"Неизвестен ИД на продукт\")","v":"Сандали"},"2012-02-01",83,{"v":54,"d":"54 лв."},753,{"v":1005,"d":"1,005"},{"$f":"табл_Продажби[[#This Row],[Продадени бройки (на дребно)]]+табл_Продажби[[#This Row],[Продадени бройки (на едро)]]","v":{"v":1758,"d":"1,758"}},{"$f":"табл_Продажби[[#This Row],[Продадени бройки (на дребно)]]*табл_Продажби[[#This Row],[Цена на дребно за един брой]]+табл_Продажби[[#This Row],[Продадени бройки (на едро)]]*табл_Продажби[[#This Row],[Цена на едро за един брой*]]","v":{"v":116769,"d":"116,769 лв."}}]
[null,3,{"$f":"IFERROR(IF(табл_Продажби[[#This Row],[ИД на продукт]]<>\"\",VLOOKUP(табл_Продажби[ИД на продукт],табл_Продукти[[ИД на продукт]:[Име]],2,FALSE),\"\"),\"Неизвестен ИД на продукт\")","v":"Чадъри"},"2012-02-01",34,{"v":34,"d":"34 лв."},986,{"v":1069,"d":"1,069"},{"$f":"табл_Продажби[[#This Row],[Продадени бройки (на дребно)]]+табл_Продажби[[#This Row],[Продадени бройки (на едро)]]","v":{"v":2055,"d":"2,055"}},{"$f":"табл_Продажби[[#This Row],[Продадени бройки (на дребно)]]*табл_Продажби[[#This Row],[Цена на дребно за един брой]]+табл_Продажби[[#This Row],[Продадени бройки (на едро)]]*табл_Продажби[[#This Row],[Цена на едро за един брой*]]","v":{"v":69870,"d":"69,870 лв."}}]
[null,4,{"$f":"IFERROR(IF(табл_Продажби[[#This Row],[ИД на продукт]]<>\"\",VLOOKUP(табл_Продажби[ИД на продукт],табл_Продукти[[ИД на продукт]:[Име]],2,FALSE),\"\"),\"Неизвестен ИД на продукт\")","v":"Бутилки за вода"},"2012-02-01",35,{"v":25,"d":"25 лв."},848,{"v":1211,"d":"1,211"},{"$f":"табл_Продажби[[#This Row],[Продадени бройки (на дребно)]]+табл_Продажби[[#This Row],[Продадени бройки (на едро)]]","v":{"v":2059,"d":"2,059"}},{"$f":"табл_Продажби[[#This Row],[Продадени бройки (на дребно)]]*табл_Продажби[[#This Row],[Цена на дребно за един брой]]+табл_Продажби[[#This Row],[Продадени бройки (на едро)]]*табл_Продажби[[#This Row],[Цена на едро за един брой*]]","v":{"v":59955,"d":"59,955 лв."}}]
[null,5,{"$f":"IFERROR(IF(табл_Продажби[[#This Row],[ИД на продукт]]<>\"\",VLOOKUP(табл_Продажби[ИД на продукт],табл_Продукти[[ИД на продукт]:[Име]],2,FALSE),\"\"),\"Неизвестен ИД на продукт\")","v":"Шорти"},"2012-02-01",41,{"v":38,"d":"38 лв."},980,{"v":1330,"d":"1,330"},{"$f":"табл_Продажби[[#This Row],[Продадени бройки (на дребно)]]+табл_Продажби[[#This Row],[Продадени бройки (на едро)]]","v":{"v":2310,"d":"2,310"}},{"$f":"табл_Продажби[[#This Row],[Продадени бройки (на дребно)]]*табл_Продажби[[#This Row],[Цена на дребно за един брой]]+табл_Продажби[[#This Row],[Продадени бройки (на едро)]]*табл_Продажби[[#This Row],[Цена на едро за един брой*]]","v":{"v":90720,"d":"90,720 лв."}}]
[null,1,{"$f":"IFERROR(IF(табл_Продажби[[#This Row],[ИД на продукт]]<>\"\",VLOOKUP(табл_Продажби[ИД на продукт],табл_Продукти[[ИД на продукт]:[Име]],2,FALSE),\"\"),\"Неизвестен ИД на продукт\")","v":"Ризи"},"2012-02-29",27,{"v":18,"d":"18 лв."},533,{"v":1936,"d":"1,936"},{"$f":"табл_Продажби[[#This Row],[Продадени бройки (на дребно)]]+табл_Продажби[[#This Row],[Продадени бройки (на едро)]]","v":{"v":2469,"d":"2,469"}},{"$f":"табл_Продажби[[#This Row],[Продадени бройки (на дребно)]]*табл_Продажби[[#This Row],[Цена на дребно за един брой]]+табл_Продажби[[#This Row],[Продадени бройки (на едро)]]*табл_Продажби[[#This Row],[Цена на едро за един брой*]]","v":{"v":49239,"d":"49,239 лв."}}]
[null,2,{"$f":"IFERROR(IF(табл_Продажби[[#This Row],[ИД на продукт]]<>\"\",VLOOKUP(табл_Продажби[ИД на продукт],табл_Продукти[[ИД на продукт]:[Име]],2,FALSE),\"\"),\"Неизвестен ИД на продукт\")","v":"Сандали"},"2012-02-29",38,{"v":28,"d":"28 лв."},952,{"v":1512,"d":"1,512"},{"$f":"табл_Продажби[[#This Row],[Продадени бройки (на дребно)]]+табл_Продажби[[#This Row],[Продадени бройки (на едро)]]","v":{"v":2464,"d":"2,464"}},{"$f":"табл_Продажби[[#This Row],[Продадени бройки (на дребно)]]*табл_Продажби[[#This Row],[Цена на дребно за един брой]]+табл_Продажби[[#This Row],[Продадени бройки (на едро)]]*табл_Продажби[[#This Row],[Цена на едро за един брой*]]","v":{"v":78512,"d":"78,512 лв."}}]
[null,3,{"$f":"IFERROR(IF(табл_Продажби[[#This Row],[ИД на продукт]]<>\"\",VLOOKUP(табл_Продажби[ИД на продукт],табл_Продукти[[ИД на продукт]:[Име]],2,FALSE),\"\"),\"Неизвестен ИД на продукт\")","v":"Чадъри"},"2012-02-29",92,{"v":92,"d":"92 лв."},956,{"v":1266,"d":"1,266"},{"$f":"табл_Продажби[[#This Row],[Продадени бройки (на дребно)]]+табл_Продажби[[#This Row],[Продадени бройки (на едро)]]","v":{"v":2222,"d":"2,222"}},{"$f":"табл_Продажби[[#This Row],[Продадени бройки (на дребно)]]*табл_Продажби[[#This Row],[Цена на дребно за един брой]]+табл_Продажби[[#This Row],[Продадени бройки (на едро)]]*табл_Продажби[[#This Row],[Цена на едро за един брой*]]","v":{"v":204424,"d":"204,424 лв."}}]
[null,4,{"$f":"IFERROR(IF(табл_Продажби[[#This Row],[ИД на продукт]]<>\"\",VLOOKUP(табл_Продажби[ИД на продукт],табл_Продукти[[ИД на продукт]:[Име]],2,FALSE),\"\"),\"Неизвестен ИД на продукт\")","v":"Бутилки за вода"},"2012-02-29",43,{"v":36,"d":"36 лв."},952,{"v":1390,"d":"1,390"},{"$f":"табл_Продажби[[#This Row],[Продадени бройки (на дребно)]]+табл_Продажби[[#This Row],[Продадени бройки (на едро)]]","v":{"v":2342,"d":"2,342"}},{"$f":"табл_Продажби[[#This Row],[Продадени бройки (на дребно)]]*табл_Продажби[[#This Row],[Цена на дребно за един брой]]+табл_Продажби[[#This Row],[Продадени бройки (на едро)]]*табл_Продажби[[#This Row],[Цена на едро за един брой*]]","v":{"v":90976,"d":"90,976 лв."}}]
[null,5,{"$f":"IFERROR(IF(табл_Продажби[[#This Row],[ИД на продукт]]<>\"\",VLOOKUP(табл_Продажби[ИД на продукт],табл_Продукти[[ИД на продукт]:[Име]],2,FALSE),\"\"),\"Неизвестен ИД на продукт\")","v":"Шорти"},"2012-02-29",98,{"v":73,"d":"73 лв."},530,{"v":1452,"d":"1,452"},{"$f":"табл_Продажби[[#This Row],[Продадени бройки (на дребно)]]+табл_Продажби[[#This Row],[Продадени бройки (на едро)]]","v":{"v":1982,"d":"1,982"}},{"$f":"табл_Продажби[[#This Row],[Продадени бройки (на дребно)]]*табл_Продажби[[#This Row],[Цена на дребно за един брой]]+табл_Продажби[[#This Row],[Продадени бройки (на едро)]]*табл_Продажби[[#This Row],[Цена на едро за един брой*]]","v":{"v":157936,"d":"157,936 лв."}}]
[null,1,{"$f":"IFERROR(IF(табл_Продажби[[#This Row],[ИД на продукт]]<>\"\",VLOOKUP(табл_Продажби[ИД на продукт],табл_Продукти[[ИД на продукт]:[Име]],2,FALSE),\"\"),\"Неизвестен ИД на продукт\")","v":"Ризи"},"2012-03-31",38,{"v":28,"d":"28 лв."},973,{"v":1415,"d":"1,415"},{"$f":"табл_Продажби[[#This Row],[Продадени бройки (на дребно)]]+табл_Продажби[[#This Row],[Продадени бройки (на едро)]]","v":{"v":2388,"d":"2,388"}},{"$f":"табл_Продажби[[#This Row],[Продадени бройки (на дребно)]]*табл_Продажби[[#This Row],[Цена на дребно за един брой]]+табл_Продажби[[#This Row],[Продадени бройки (на едро)]]*табл_Продажби[[#This Row],[Цена на едро за един брой*]]","v":{"v":76594,"d":"76,594 лв."}}]
[null,2,{"$f":"IFERROR(IF(табл_Продажби[[#This Row],[ИД на продукт]]<>\"\",VLOOKUP(табл_Продажби[ИД на продукт],табл_Продукти[[ИД на продукт]:[Име]],2,FALSE),\"\"),\"Неизвестен ИД на продукт\")","v":"Сандали"},"2012-03-31",50,{"v":36,"d":"36 лв."},672,{"v":1105,"d":"1,105"},{"$f":"табл_Продажби[[#This Row],[Продадени бройки (на дребно)]]+табл_Продажби[[#This Row],[Продадени бройки (на едро)]]","v":{"v":1777,"d":"1,777"}},{"$f":"табл_Продажби[[#This Row],[Продадени бройки (на дребно)]]*табл_Продажби[[#This Row],[Цена на дребно за един брой]]+табл_Продажби[[#This Row],[Продадени бройки (на едро)]]*табл_Продажби[[#This Row],[Цена на едро за един брой*]]","v":{"v":73380,"d":"73,380 лв."}}]
[null,3,{"$f":"IFERROR(IF(табл_Продажби[[#This Row],[ИД на продукт]]<>\"\",VLOOKUP(табл_Продажби[ИД на продукт],табл_Продукти[[ИД на продукт]:[Име]],2,FALSE),\"\"),\"Неизвестен ИД на продукт\")","v":"Чадъри"},"2012-03-31",24,{"v":23,"d":"23 лв."},769,{"v":1629,"d":"1,629"},{"$f":"табл_Продажби[[#This Row],[Продадени бройки (на дребно)]]+табл_Продажби[[#This Row],[Продадени бройки (на едро)]]","v":{"v":2398,"d":"2,398"}},{"$f":"табл_Продажби[[#This Row],[Продадени бройки (на дребно)]]*табл_Продажби[[#This Row],[Цена на дребно за един брой]]+табл_Продажби[[#This Row],[Продадени бройки (на едро)]]*табл_Продажби[[#This Row],[Цена на едро за един брой*]]","v":{"v":55923,"d":"55,923 лв."}}]
[null,4,{"$f":"IFERROR(IF(табл_Продажби[[#This Row],[ИД на продукт]]<>\"\",VLOOKUP(табл_Продажби[ИД на продукт],табл_Продукти[[ИД на продукт]:[Име]],2,FALSE),\"\"),\"Неизвестен ИД на продукт\")","v":"Бутилки за вода"},"2012-03-31",72,{"v":57,"d":"57 лв."},985,{"v":1848,"d":"1,848"},{"$f":"табл_Продажби[[#This Row],[Продадени бройки (на дребно)]]+табл_Продажби[[#This Row],[Продадени бройки (на едро)]]","v":{"v":2833,"d":"2,833"}},{"$f":"табл_Продажби[[#This Row],[Продадени бройки (на дребно)]]*табл_Продажби[[#This Row],[Цена на дребно за един брой]]+табл_Продажби[[#This Row],[Продадени бройки (на едро)]]*табл_Продажби[[#This Row],[Цена на едро за един брой*]]","v":{"v":176256,"d":"176,256 лв."}}]
[null,5,{"$f":"IFERROR(IF(табл_Продажби[[#This Row],[ИД на продукт]]<>\"\",VLOOKUP(табл_Продажби[ИД на продукт],табл_Продукти[[ИД на продукт]:[Име]],2,FALSE),\"\"),\"Неизвестен ИД на продукт\")","v":"Шорти"},"2012-03-31",85,{"v":43,"d":"43 лв."},721,{"v":1426,"d":"1,426"},{"$f":"табл_Продажби[[#This Row],[Продадени бройки (на дребно)]]+табл_Продажби[[#This Row],[Продадени бройки (на едро)]]","v":{"v":2147,"d":"2,147"}},{"$f":"табл_Продажби[[#This Row],[Продадени бройки (на дребно)]]*табл_Продажби[[#This Row],[Цена на дребно за един брой]]+табл_Продажби[[#This Row],[Продадени бройки (на едро)]]*табл_Продажби[[#This Row],[Цена на едро за един брой*]]","v":{"v":122603,"d":"122,603 лв."}}]
[null,1,{"$f":"IFERROR(IF(табл_Продажби[[#This Row],[ИД на продукт]]<>\"\",VLOOKUP(табл_Продажби[ИД на продукт],табл_Продукти[[ИД на продукт]:[Име]],2,FALSE),\"\"),\"Неизвестен ИД на продукт\")","v":"Ризи"},"2012-04-30",91,{"v":65,"d":"65 лв."},603,{"v":1226,"d":"1,226"},{"$f":"табл_Продажби[[#This Row],[Продадени бройки (на дребно)]]+табл_Продажби[[#This Row],[Продадени бройки (на едро)]]","v":{"v":1829,"d":"1,829"}},{"$f":"табл_Продажби[[#This Row],[Продадени бройки (на дребно)]]*табл_Продажби[[#This Row],[Цена на дребно за един брой]]+табл_Продажби[[#This Row],[Продадени бройки (на едро)]]*табл_Продажби[[#This Row],[Цена на едро за един брой*]]","v":{"v":134563,"d":"134,563 лв."}}]
[null,2,{"$f":"IFERROR(IF(табл_Продажби[[#This Row],[ИД на продукт]]<>\"\",VLOOKUP(табл_Продажби[ИД на продукт],табл_Продукти[[ИД на продукт]:[Име]],2,FALSE),\"\"),\"Неизвестен ИД на продукт\")","v":"Сандали"},"2012-04-30",91,{"v":55,"d":"55 лв."},892,{"v":1823,"d":"1,823"},{"$f":"табл_Продажби[[#This Row],[Продадени бройки (на дребно)]]+табл_Продажби[[#This Row],[Продадени бройки (на едро)]]","v":{"v":2715,"d":"2,715"}},{"$f":"табл_Продажби[[#This Row],[Продадени бройки (на дребно)]]*табл_Продажби[[#This Row],[Цена на дребно за един брой]]+табл_Продажби[[#This Row],[Продадени бройки (на едро)]]*табл_Продажби[[#This Row],[Цена на едро за един брой*]]","v":{"v":181437,"d":"181,437 лв."}}]
[null,3,{"$f":"IFERROR(IF(табл_Продажби[[#This Row],[ИД на продукт]]<>\"\",VLOOKUP(табл_Продажби[ИД на продукт],табл_Продукти[[ИД на продукт]:[Име]],2,FALSE),\"\"),\"Неизвестен ИД на продукт\")","v":"Чадъри"},"2012-04-30",42,{"v":42,"d":"42 лв."},611,{"v":1181,"d":"1,181"},{"$f":"табл_Продажби[[#This Row],[Продадени бройки (на дребно)]]+табл_Продажби[[#This Row],[Продадени бройки (на едро)]]","v":{"v":1792,"d":"1,792"}},{"$f":"табл_Продажби[[#This Row],[Продадени бройки (на дребно)]]*табл_Продажби[[#This Row],[Цена на дребно за един брой]]+табл_Продажби[[#This Row],[Продадени бройки (на едро)]]*табл_Продажби[[#This Row],[Цена на едро за един брой*]]","v":{"v":75264,"d":"75,264 лв."}}]
[null,4,{"$f":"IFERROR(IF(табл_Продажби[[#This Row],[ИД на продукт]]<>\"\",VLOOKUP(табл_Продажби[ИД на продукт],табл_Продукти[[ИД на продукт]:[Име]],2,FALSE),\"\"),\"Неизвестен ИД на продукт\")","v":"Бутилки за вода"},"2012-04-30",85,{"v":43,"d":"43 лв."},530,{"v":1039,"d":"1,039"},{"$f":"табл_Продажби[[#This Row],[Продадени бройки (на дребно)]]+табл_Продажби[[#This Row],[Продадени бройки (на едро)]]","v":{"v":1569,"d":"1,569"}},{"$f":"табл_Продажби[[#This Row],[Продадени бройки (на дребно)]]*табл_Продажби[[#This Row],[Цена на дребно за един брой]]+табл_Продажби[[#This Row],[Продадени бройки (на едро)]]*табл_Продажби[[#This Row],[Цена на едро за един брой*]]","v":{"v":89727,"d":"89,727 лв."}}]
[null,5,{"$f":"IFERROR(IF(табл_Продажби[[#This Row],[ИД на продукт]]<>\"\",VLOOKUP(табл_Продажби[ИД на продукт],табл_Продукти[[ИД на продукт]:[Име]],2,FALSE),\"\"),\"Неизвестен ИД на продукт\")","v":"Шорти"},"2012-04-30",82,{"v":71,"d":"71 лв."},716,{"v":1249,"d":"1,249"},{"$f":"табл_Продажби[[#This Row],[Продадени бройки (на дребно)]]+табл_Продажби[[#This Row],[Продадени бройки (на едро)]]","v":{"v":1965,"d":"1,965"}},{"$f":"табл_Продажби[[#This Row],[Продадени бройки (на дребно)]]*табл_Продажби[[#This Row],[Цена на дребно за един брой]]+табл_Продажби[[#This Row],[Продадени бройки (на едро)]]*табл_Продажби[[#This Row],[Цена на едро за един брой*]]","v":{"v":147391,"d":"147,391 лв."}}]
[null,1,{"$f":"IFERROR(IF(табл_Продажби[[#This Row],[ИД на продукт]]<>\"\",VLOOKUP(табл_Продажби[ИД на продукт],табл_Продукти[[ИД на продукт]:[Име]],2,FALSE),\"\"),\"Неизвестен ИД на продукт\")","v":"Ризи"},"2012-05-14",34,{"v":31,"d":"31 лв."},850,{"v":1548,"d":"1,548"},{"$f":"табл_Продажби[[#This Row],[Продадени бройки (на дребно)]]+табл_Продажби[[#This Row],[Продадени бройки (на едро)]]","v":{"v":2398,"d":"2,398"}},{"$f":"табл_Продажби[[#This Row],[Продадени бройки (на дребно)]]*табл_Продажби[[#This Row],[Цена на дребно за един брой]]+табл_Продажби[[#This Row],[Продадени бройки (на едро)]]*табл_Продажби[[#This Row],[Цена на едро за един брой*]]","v":{"v":76888,"d":"76,888 лв."}}]
[null,2,{"$f":"IFERROR(IF(табл_Продажби[[#This Row],[ИД на продукт]]<>\"\",VLOOKUP(табл_Продажби[ИД на продукт],табл_Продукти[[ИД на продукт]:[Име]],2,FALSE),\"\"),\"Неизвестен ИД на продукт\")","v":"Сандали"},"2012-05-14",64,{"v":40,"d":"40 лв."},876,{"v":1663,"d":"1,663"},{"$f":"табл_Продажби[[#This Row],[Продадени бройки (на дребно)]]+табл_Продажби[[#This Row],[Продадени бройки (на едро)]]","v":{"v":2539,"d":"2,539"}},{"$f":"табл_Продажби[[#This Row],[Продадени бройки (на дребно)]]*табл_Продажби[[#This Row],[Цена на дребно за един брой]]+табл_Продажби[[#This Row],[Продадени бройки (на едро)]]*табл_Продажби[[#This Row],[Цена на едро за един брой*]]","v":{"v":122584,"d":"122,584 лв."}}]
[null,3,{"$f":"IFERROR(IF(табл_Продажби[[#This Row],[ИД на продукт]]<>\"\",VLOOKUP(табл_Продажби[ИД на продукт],табл_Продукти[[ИД на продукт]:[Име]],2,FALSE),\"\"),\"Неизвестен ИД на продукт\")","v":"Чадъри"},"2012-05-14",33,{"v":30,"d":"30 лв."},881,{"v":1149,"d":"1,149"},{"$f":"табл_Продажби[[#This Row],[Продадени бройки (на дребно)]]+табл_Продажби[[#This Row],[Продадени бройки (на едро)]]","v":{"v":2030,"d":"2,030"}},{"$f":"табл_Продажби[[#This Row],[Продадени бройки (на дребно)]]*табл_Продажби[[#This Row],[Цена на дребно за един брой]]+табл_Продажби[[#This Row],[Продадени бройки (на едро)]]*табл_Продажби[[#This Row],[Цена на едро за един брой*]]","v":{"v":63543,"d":"63,543 лв."}}]
[null,4,{"$f":"IFERROR(IF(табл_Продажби[[#This Row],[ИД на продукт]]<>\"\",VLOOKUP(табл_Продажби[ИД на продукт],табл_Продукти[[ИД на продукт]:[Име]],2,FALSE),\"\"),\"Неизвестен ИД на продукт\")","v":"Бутилки за вода"},"2012-05-14",29,{"v":27,"d":"27 лв."},802,{"v":1548,"d":"1,548"},{"$f":"табл_Продажби[[#This Row],[Продадени бройки (на дребно)]]+табл_Продажби[[#This Row],[Продадени бройки (на едро)]]","v":{"v":2350,"d":"2,350"}},{"$f":"табл_Продажби[[#This Row],[Продадени бройки (на дребно)]]*табл_Продажби[[#This Row],[Цена на дребно за един брой]]+табл_Продажби[[#This Row],[Продадени бройки (на едро)]]*табл_Продажби[[#This Row],[Цена на едро за един брой*]]","v":{"v":65054,"d":"65,054 лв."}}]
[null,5,{"$f":"IFERROR(IF(табл_Продажби[[#This Row],[ИД на продукт]]<>\"\",VLOOKUP(табл_Продажби[ИД на продукт],табл_Продукти[[ИД на продукт]:[Име]],2,FALSE),\"\"),\"Неизвестен ИД на продукт\")","v":"Шорти"},"2013-12-11",24,{"v":15,"d":"15 лв."},824,{"v":1994,"d":"1,994"},{"$f":"табл_Продажби[[#This Row],[Продадени бройки (на дребно)]]+табл_Продажби[[#This Row],[Продадени бройки (на едро)]]","v":{"v":2818,"d":"2,818"}},{"$f":"табл_Продажби[[#This Row],[Продадени бройки (на дребно)]]*табл_Продажби[[#This Row],[Цена на дребно за един брой]]+табл_Продажби[[#This Row],[Продадени бройки (на едро)]]*табл_Продажби[[#This Row],[Цена на едро за един брой*]]","v":{"v":49686,"d":"49,686 лв."}}]

{"sheet":"Ценоразпис","index":2,"n_rows":18,"n_cols":6,"rows_kept":18,"merged":[[15,1,15,5]]}
[null,"Ценоразпис на продуктите"]
[]
[null,"Adventure Works"]
[null,"ул. Драган Цанков 23456"]
[null,"Пловдив 3456"]
[null,"Тел.: (425) 555-0150"]
[null,"Факс: (425) 555-0152"]
[null,"www.adventure-works.com",{"$nulls":3},"Последно актуализиране 15.08.2013 r."]
[]
[null,"ИД на продукт","Име","Описание","Цена на дребно за един брой","Цена на едро за един брой*"]
[null,1,"Ризи","Чувствайте прохлада през цялото лято с нашите предварително свити ризи от 100% памук.",{"v":22,"d":"22 лв."},{"v":15,"d":"15.00 лв."}]
[null,2,"Сандали","Сложете нашите стабилни сандали с каучукова подметка и ходете с лекота и по най-горещия пясък.",{"v":10,"d":"10 лв."},{"v":6,"d":"6.00 лв."}]
[null,3,"Чадъри","Скрийте се от слънцето под нашите големи плажни чадъри, които не пропускат 96% от всички вредни ултравиолетови лъчи.",{"v":30,"d":"30 лв."},{"v":20,"d":"20.00 лв."}]
[null,4,"Бутилки за вода","Пийте вода при идеална температура от нашата изолирана бутилка за вода.",{"v":7,"d":"7 лв."},{"v":5,"d":"5.00 лв."}]
[null,5,"Шорти","С нашите бързосъхнещи найлонови шорти можете от водата да се отправите направо към колата.",{"v":15,"d":"15 лв."},{"v":8,"d":"8.00 лв."}]
[]
[{"$nulls":5},"Обадете ни се за артикули извън списъка."]
[{"$nulls":5},"*Цените на едро важат да количества от 12 бройки нагоре."]

{"sheet":"Обобщение на ценовите точки","index":3,"n_rows":10,"n_cols":4,"rows_kept":10,"hidden":true,"merged":[[1,1,1,3]]}
[null,"Обобщена таблица на ценовите точки"]
[null,"Този лист трябва да остане скрит. Всяка промяна в обобщената таблица по-долу може да доведе до неправилни данни в отчета за продажбите на продукти."]
[null,"Избран продукт:",{"$f":"IF(LEN(B5),B5,\"None\")","v":"Сандали"}]
[null,"Име на продукт","Цена на дребно за един брой","Сума на общите продажби (бр.)"]
[null,"Сандали",{"v":38,"d":"38 лв."},2464]
[null,null,{"v":50,"d":"50 лв."},1777]
[null,null,{"v":64,"d":"64 лв."},2539]
[null,null,{"v":70,"d":"70 лв."},1787]
[null,null,{"v":83,"d":"83 лв."},1758]
[null,null,{"v":91,"d":"91 лв."},2715]

{"sheet":"Обобщена тенденция на продажби","index":4,"n_rows":9,"n_cols":3,"rows_kept":9,"hidden":true,"merged":[[1,1,1,3]]}
[null,"Обобщена таблица на тенденцията на продажбите"]
[null,"Този лист трябва да остане скрит. Всяка промяна в обобщената таблица по-долу може да доведе до неправилни данни в отчета за продажбите на продукти."]
[null,"Сума на общите продажби (бр.)","Име на продукт"]
[null,"Дата на цената","Сандали"]
[null,"яну",1787]
[null,"фев",4222]
[null,"мар",1777]
[null,"апр",2715]
[null,"май",2539]